bitfinex/quotes_SOLUSD_20220211
["timestamp","ask_amount","ask_price","bid_price","bid_amount"]
[1644610889663,15.3703,97.69,97.602,35.84048671]
[1644610889863,5.12,97.689,97.602,35.84048671]
[1644610890466,5.12,97.689,97.603,59.98]
[1644610890668,12.15,97.69,97.603,59.98]
[1644610890868,12.15,97.69,97.611,59.98]
[1644610891465,5.12,97.735,97.611,59.98]
[1644610891668,12.15,97.72,97.611,59.98]
[1644610891866,12.15,97.72,97.613,59.98]
[1644610892166,5.119,97.738,97.621,106.80315038]
[1644610892467,0.48,97.825,97.623,59.98]
[1644610892468,12.15,97.77,97.623,59.98]
[1644610892665,12.15,97.77,97.625,59.98]
[1644610892868,12.15,97.77,97.624,8.45512845]
[1644610892869,12.15,97.79,97.66,1.18]
[1644610893067,5.117,97.818,97.66,1.18]
[1644610893068,12.15,97.8,97.662,59.98]
[1644610893272,12.15,97.8,97.702,43.15522229]
[1644610893273,5.116,97.799,97.702,43.15522229]
[1644610893474,5.116,97.799,97.703,59.98]
[1644610893671,27.5035,97.8,97.703,59.98]
[1644610893872,12.15,97.8,97.702,43.15522229]
[1644610894071,5.115,97.825,97.704,2.38366791]
[1644610894274,12.15,97.83,97.71,15.352]
[1644610894571,5.114,97.829,97.711,5.114]
[1644610894773,7.49766791,97.829,97.711,2.38366791]
[1644610894971,7.49766791,97.829,97.705,5.114]
[1644610894972,0.48,97.825,97.705,5.114]
[1644610895173,0.48,97.815,97.705,5.114]
[1644610895374,12.15,97.8,97.705,5.114]
[1644610895574,12.15,97.79,97.634,15.5442]
[1644610895773,12.15,97.78,97.623,149.9077]
[1644610895976,12.15,97.77,97.624,59.98]
[1644610896175,12.15,97.76,97.624,59.98]
[1644610896374,27.5117,97.76,97.64,15.3628]
[1644610896574,27.5117,97.76,97.641,45.76092055]
[1644610896575,5.117,97.759,97.641,45.76092055]
[1644610896775,7.50066791,97.759,97.641,45.76092055]
[1644610897175,12.15,97.75,97.641,45.76092055]
[1644610897376,5.117,97.749,97.641,45.76092055]
[1644610897882,15.3645,97.74,97.642,59.98]
[1644610898081,12.15,97.75,97.65,15.3615]
[1644610898276,12.15,97.75,97.651,59.98]
[1644610898677,12.15,97.75,97.652,5.117]
[1644610898874,12.15,97.75,97.643,59.98]
[1644610899075,12.15,97.75,97.642,5.117]
[1644610899076,12.15,97.75,97.653,10.00813322]
[1644610899277,12.15,97.75,97.654,5.117]
[1644610899697,12.15,97.75,97.67,15.3586]
[1644610900098,12.15,97.75,97.671,48.31555638]
[1644610901798,5.117,97.749,97.671,48.31555638]
[1644610901997,12.15,97.75,97.671,48.31555638]
[1644610902197,5.117,97.749,97.672,10.00813322]
[1644610902397,12.15,97.75,97.672,10.00813322]
[1644610902799,15.0013,97.759,97.672,10.00813322]
[1644610903000,5.116,97.758,97.672,10.00813322]
[1644610903201,5.116,97.758,97.69,1.1044406]
[1644610903405,5.116,97.758,97.691,44.89419652]
[1644610903804,5.116,97.758,97.69,1.1044406]
[1644610904102,12.15,97.75,97.69,1.1044406]
[1644610904302,5.116,97.749,97.69,1.1044406]
[1644610905202,12.15,97.75,97.69,1.1044406]
[1644610905403,5.116,97.748,97.691,10.00813322]
[1644610905606,12.15,97.75,97.691,10.00813322]
[1644610905805,27.512,97.75,97.691,10.00813322]
[1644610906607,27.512,97.75,97.74,1.1044406]
[1644610906806,5.115,97.749,97.74,1.1044406]
[1644610907612,5.115,97.749,97.74,0.0044406]
[1644610907811,15.3641,97.74,97.691,10.00813322]
[1644610908008,5.116,97.739,97.691,10.00813322]
[1644610908408,5.116,97.739,97.637,59.98]
[1644610909409,5.116,97.739,97.641,59.98]
[1644610909812,12.15,97.74,97.643,59.98]
[1644610911517,12.15,97.74,97.644,10.00813322]
[1644610911518,5.118,97.739,97.644,10.00813322]
[1644610911917,7.50166791,97.739,97.644,10.00813322]
[1644610912115,2.38366791,97.738,97.644,10.00813322]
[1644610912315,5.118,97.737,97.644,10.00813322]
[1644610912716,7.50166791,97.737,97.644,10.00813322]
[1644610912915,10.16237771,97.736,97.644,10.00813322]
[1644610913216,7.50166791,97.735,97.644,10.00813322]
[1644610913415,12.15,97.72,97.644,10.00813322]
[1644610913615,15.3709,97.7,97.644,10.00813322]
[1644610913815,12.15,97.69,97.644,10.00813322]
[1644610914415,12.15,97.69,97.644,53.57963471]
[1644610914619,12.15,97.69,97.644,43.57150149]
[1644610915217,12.15,97.69,97.63,10.00813322]
[1644610915417,5.119,97.689,97.63,10.00813322]
[1644610915820,15.3721,97.68,97.63,10.00813322]
[1644610916019,12.15,97.67,97.63,10.00813322]
[1644610916421,5.12,97.669,97.63,10.00813322]
[1644610916919,15.3755,97.66,97.63,10.00813322]
[1644610917221,5.12,97.659,97.63,10.00813322]
[1644610917421,15.3755,97.66,97.63,10.00813322]
[1644610917620,15.3755,97.66,97.624,44.75446439]
[1644610917823,15.3755,97.66,97.623,10.00813322]
[1644610918024,30.4151,97.66,97.623,10.00813322]
[1644610918623,5.12,97.659,97.623,10.00813322]
[1644610918827,15.3797,97.65,97.623,10.00813322]
[1644610919027,12.15,97.64,97.623,10.00813322]
[1644610919426,5.121,97.639,97.623,10.00813322]
[1644610919828,12.15,97.64,97.623,10.00813322]
[1644610920027,12.15,97.66,97.623,10.00813322]
[1644610920827,15.3708,97.69,97.623,10.00813322]
[1644610921027,27.5208,97.69,97.623,10.00813322]
[1644610921328,27.5208,97.69,97.624,43.33798973]
[1644610921731,27.5208,97.69,97.625,10.00813322]
[1644610922129,27.5208,97.69,97.625,9.50813322]
[1644610923527,12.15,97.69,97.625,9.50813322]
[1644610923728,12.15,97.71,97.626,59.98]
[1644610923929,12.15,97.73,97.628,59.98]
[1644610924128,5.118,97.758,97.628,59.98]
[1644610924331,12.15,97.78,97.63,59.98]
[1644610924527,5.118,97.779,97.63,59.98]
[1644610924727,15.3579,97.77,97.671,59.98]
[1644610924927,15.3579,97.77,97.675,59.98]
[1644610925129,5.116,97.769,97.675,59.98]
[1644610925931,15.3579,97.77,97.675,59.98]
[1644610926128,15.3579,97.77,97.67,15.3589]
[1644610926328,15.3651,97.73,97.638,1.44175786]
[1644610926531,5.118,97.729,97.632,5.116]
[1644610926748,12.15,97.72,97.632,5.116]
[1644610927138,5.118,97.719,97.632,5.116]
[1644610927334,30.91224767,97.719,97.632,5.116]
[1644610927534,15.3693,97.71,97.632,5.116]
[1644610927736,15.3693,97.71,97.53,4.24263819]
[1644610927737,12.15,97.7,97.581,1.44175786]
[1644610927935,5.119,97.699,97.579,1.44175786]
[1644610928134,30.91324767,97.699,97.591,34.29420806]
[1644610928336,30.91324767,97.699,97.577,1.44175786]
[1644610928537,0.48,97.675,97.577,1.44175786]
[1644610928738,25.79424767,97.698,97.53,4.24263819]
[1644610928739,12.15,97.66,97.556,1.44175786]
[1644610928934,5.122,97.659,97.536,1.44175786]
[1644610929142,22.03444981,97.659,97.536,1.44175786]
[1644610929337,22.03444981,97.659,97.537,45.02928873]
[1644610929538,12.15,97.65,97.547,1.44175786]
[1644610929735,15.381,97.62,97.547,1.44175786]
[1644610930038,15.381,97.62,97.54,15.3807]
[1644610930039,12.15,97.61,97.54,15.3807]
[1644610930237,5.124,97.609,97.54,15.3807]
[1644610930434,12.15,97.61,97.54,15.3807]
[1644610930834,12.15,97.61,97.541,1.44175786]
[1644610931035,12.15,97.61,97.542,1.44175786]
[1644610931237,12.15,97.61,97.541,1.44175786]
[1644610931735,12.15,97.61,97.542,1.44175786]
[1644610931936,5.124,97.657,97.561,59.98]
[1644610932139,308.04266499,97.728,97.563,59.98]
[1644610932140,5.122,97.686,97.563,59.98]
[1644610932338,12.15,97.69,97.578,59.98]
[1644610932539,12.15,97.69,97.589,1.44175786]
[1644610932736,12.15,97.69,97.591,1.44175786]
[1644610932937,5.121,97.689,97.593,59.98]
[1644610933139,5.121,97.689,97.611,107.22047495]
[1644610934160,12.15,97.69,97.611,107.22047495]
[1644610934358,12.15,97.69,97.611,47.24047495]
[1644610934559,5.12,97.689,97.611,47.24047495]
[1644610935359,15.2487,97.689,97.611,47.24047495]
[1644610935760,5.12,97.688,97.611,47.24047495]
[1644610937365,15.3719,97.68,97.582,1.44175786]
[1644610937562,12.15,97.67,97.577,1.44175786]
[1644610937766,12.15,97.66,97.577,1.44175786]
[1644610937964,12.15,97.65,97.569,1.44175786]
[1644610938164,12.15,97.64,97.571,1.44175786]
[1644610938463,12.15,97.64,97.572,45.88499591]
[1644610938662,12.15,97.64,97.568,1.44175786]
[1644610938863,5.122,97.639,97.564,1.44175786]
[1644610939063,5.122,97.639,97.563,1.44175786]
[1644610939262,15.3818,97.62,97.563,1.44175786]
[1644610939463,12.15,97.61,97.543,1.44175786]
[1644610939668,5.124,97.609,97.536,1.44175786]
[1644610939867,5.124,97.609,97.531,1.44175786]
[1644610940064,7.50766791,97.609,97.504,1.44175786]
[1644610940264,16.91244981,97.608,97.493,1.44175786]
[1644610940463,5.125,97.607,97.493,1.44175786]
[1644610940664,22.03744981,97.607,97.49,1.44175786]
[1644610940867,22.03744981,97.607,97.466,5.1415601]
[1644610940868,15.3844,97.6,97.494,44.91208908]
[1644610941067,12.15,97.59,97.494,44.91208908]
[1644610941267,5.125,97.589,97.494,46.35384694]
[1644610941468,5.125,97.589,97.494,44.91208908]
[1644610942472,15.3886,97.58,97.495,10.02181772]
[1644610942668,12.15,97.57,97.495,10.02181772]
[1644610942868,5.126,97.569,97.495,10.02181772]
[1644610944274,15.3916,97.56,97.495,10.02181772]
[1644610944476,12.15,97.55,97.495,10.02181772]
[1644610944674,5.127,97.549,97.495,10.02181772]
[1644610945274,5.127,97.549,97.488,10.02181772]
[1644610945474,12.15,97.55,97.488,10.02181772]
[1644610945877,15.3952,97.54,97.488,10.02181772]
[1644610946076,12.15,97.53,97.488,10.02181772]
[1644610946876,27.5467,97.53,97.488,10.02181772]
[1644610947077,5.127,97.529,97.488,10.02181772]
[1644610947282,12.15,97.53,97.488,10.02181772]
[1644610947477,5.127,97.529,97.488,10.02181772]
[1644610947679,7.51066791,97.529,97.488,10.02181772]
[1644610947879,15.3992,97.52,97.488,10.02181772]
[1644610948076,15.3992,97.52,97.42,0.1129]
[1644610948077,66.0,97.509,97.42,0.1129]
[1644610948278,66.0,97.509,97.467,1.69861772]
[1644610948279,5.128,97.508,97.467,1.69861772]
[1644610948678,92.0,97.506,97.466,0.00375444]
[1644610948877,15.4051,97.5,97.42,0.1129]
[1644610949078,12.15,97.49,97.42,0.1129]
[1644610949279,5.13,97.489,97.42,0.1129]
[1644610949478,5.13,97.489,97.39,200.0]
[1644610949479,151.9,97.48,97.39,200.0]
[1644610949678,12.15,97.47,97.39,200.0]
[1644610949879,5.131,97.469,97.39,200.0]
[1644610950092,7.51466791,97.469,97.39,200.0]
[1644610950281,151.9,97.46,97.39,200.0]
[1644610950482,27.5643,97.45,97.39,200.0]
[1644610950680,87.0,97.448,97.39,200.0]
[1644610950880,5.132,97.447,97.39,157.9816]
[1644610951084,151.9,97.43,97.39,119.3198]
[1644610951685,12.15,97.42,97.39,84.27843288]
[1644610951880,80.0,97.419,97.306,5.132]
[1644610952084,85.133,97.419,97.3,5.0]
[1644610952481,2.38366791,97.418,97.3,5.0]
[1644610952684,151.9,97.41,97.3,5.0]
[1644610952883,12.15,97.4,97.352,0.0097353]
[1644610953082,5.134,97.399,97.352,0.0097353]
[1644610953284,151.9,97.39,97.352,0.0097353]
[1644610953483,12.15,97.38,97.352,0.0097353]
[1644610953682,12.15,97.38,97.3,5.0]
[1644610953683,82.0,97.378,97.3,5.0]
[1644610953881,5.136,97.377,97.3,5.0]
[1644610954083,23.20400537,97.377,97.3,5.0]
[1644610954281,2.38366791,97.376,97.3,5.0]
[1644610954482,5.136,97.375,97.3,5.0]
[1644610954684,15.4297,97.37,97.3,5.0]
[1644610954882,12.15,97.36,97.3,5.0]
[1644610955282,121.0,97.359,97.3,0.00984762]
[1644610955483,123.38366791,97.359,97.3,0.00984762]
[1644610955682,137.58711524,97.359,97.3,0.00984762]
[1644610955882,18.97078315,97.358,97.3,0.00984762]
[1644610956082,5.136,97.357,97.3,0.00984762]
[1644610956282,24.10678315,97.357,97.3,0.00984762]
[1644610956481,18.97078315,97.356,97.3,0.00984762]
[1644610956682,15.4304,97.35,97.3,0.00984762]
[1644610956882,12.15,97.34,97.273,45.16234728]
[1644610957083,12.15,97.33,97.278,2.38366791]
[1644610957282,12.15,97.32,97.273,45.16234728]
[1644610957482,12.15,97.32,97.26,0.3]
[1644610957884,2.38366791,97.326,97.26,0.3]
[1644610958089,1.69861772,97.319,97.26,0.3]
[1644610958484,12.15,97.31,97.26,0.3]
[1644610959084,20.0,97.27,97.26,0.3]
[1644610959285,1.69861772,97.319,97.275,0.405284]
[1644610959685,12.15,97.28,97.275,0.405284]
[1644610959886,1.69861772,97.319,97.276,36.0]
[1644610960094,12.15,97.31,97.276,36.0]
[1644610960294,12.15,97.31,97.275,0.405284]
[1644610960295,12.15,97.31,97.277,40.92716052]
[1644610960694,0.0001,97.31,97.275,0.405284]
[1644610961093,1.69861772,97.309,97.275,0.405284]
[1644610962294,12.15,97.33,97.276,104.0]
[1644610962494,5.32968261,97.398,97.277,5.138]
[1644610962693,12.15,97.39,97.277,5.138]
[1644610962994,12.15,97.38,97.277,5.138]
[1644610963197,12.15,97.37,97.278,40.28728678]
[1644610963395,12.15,97.37,97.279,5.136]
[1644610963597,5.136,97.408,97.279,5.136]
[1644610963795,151.9,97.44,97.279,5.136]
[1644610963796,12.15,97.39,97.28,62.36366791]
[1644610963995,12.15,97.39,97.282,59.98]
[1644610964196,12.15,97.39,97.284,59.98]
[1644610964396,10.455,97.39,97.301,113.0]
[1644610964595,10.455,97.39,97.302,45.09253175]
[1644610964797,10.455,97.39,97.303,65.116]
[1644610965295,10.455,97.39,97.304,59.98]
[1644610965498,5.136,97.442,97.31,15.4111]
[1644610965499,12.15,97.41,97.31,15.4111]
[1644610965698,12.15,97.41,97.328,59.98]
[1644610965896,5.135,97.409,97.33,59.98]
[1644610966096,12.15,97.41,97.329,42.09565989]
[1644610966298,5.135,97.409,97.329,42.09565989]
[1644610966498,12.15,97.41,97.329,39.71199198]
[1644610966698,5.135,97.408,97.329,39.71199198]
[1644610966899,5.135,97.409,97.329,39.71199198]
[1644610967116,5.32710057,97.408,97.329,39.71199198]
[1644610967316,5.135,97.407,97.287,113.0]
[1644610967516,151.9,97.4,97.26,0.3]
[1644610967716,15.4267,97.38,97.26,0.3]
[1644610967916,12.15,97.37,97.26,0.3]
[1644610968117,5.136,97.369,97.26,0.3]
[1644610968320,5.136,97.369,97.261,46.32059255]
[1644610968517,2.38366791,97.368,97.26,0.3]
[1644610968719,0.48,97.344,97.26,0.3]
[1644610968920,12.15,97.33,97.26,0.3]
[1644610969119,5.138,97.329,97.26,0.3]
[1644610969319,7.52166791,97.329,97.26,0.3]
[1644610969719,2.38366791,97.328,97.26,0.3]
[1644610969920,5.138,97.327,97.26,0.3]
[1644610970118,5.138,97.327,97.26,0.19197199]
[1644610970318,2.38366791,97.326,97.26,0.19197199]
[1644610970720,15.4364,97.32,97.26,0.19197199]
[1644610971023,12.15,97.31,97.26,0.19197199]
[1644610971222,5.139,97.309,97.26,0.19197199]
[1644610971426,7.52266791,97.309,97.26,0.19197199]
[1644610971623,2.38366791,97.308,97.26,0.19197199]
[1644610971822,5.139,97.307,97.26,0.19197199]
[1644610972423,2.38366791,97.306,97.26,0.19197199]
[1644610972623,15.4391,97.3,97.26,0.19197199]
[1644610972823,12.15,97.29,97.26,0.19197199]
[1644610973025,5.14,97.289,97.26,0.19197199]
[1644610973825,2.38366791,97.288,97.26,0.00197199]
[1644610974026,5.14,97.287,97.26,0.00197199]
[1644610974428,2.38366791,97.286,97.26,0.00197199]
[1644610974626,0.48,97.284,97.26,0.00197199]
[1644610974828,12.15,97.27,97.26,0.00197199]
[1644610975027,5.14,97.269,97.26,0.00197199]
[1644610975227,7.52366791,97.269,97.26,0.00197199]
[1644610975627,2.38366791,97.268,97.26,0.00197199]
[1644610975827,5.14,97.267,97.26,0.00197199]
[1644610976027,12.15,97.27,97.26,0.00197199]
[1644610976231,15.18219997,97.27,97.26,0.00197199]
[1644610977027,5.14,97.269,97.26,0.00197199]
[1644610977227,7.52366791,97.269,97.26,0.00197199]
[1644610977429,2.38366791,97.268,97.26,0.00197199]
[1644610977832,12.15,97.27,97.26,0.00197199]
[1644610978031,121.0,97.268,97.162,1.44175786]
[1644610978283,15.4468,97.25,97.162,1.44175786]
[1644610978430,12.15,97.24,97.152,1.44175786]
[1644610978631,12.15,97.24,97.146,23.7796]
[1644610978834,5.144,97.239,97.146,23.7796]
[1644610979134,12.15,97.24,97.146,1.44175786]
[1644610979333,7.52766791,97.238,97.13,30.07]
[1644610979530,5.144,97.239,97.13,30.07]
[1644610979731,15.4496,97.23,97.13,30.07]
[1644610979932,12.15,97.22,97.13,30.07]
[1644610980135,5.144,97.219,97.131,44.69696669]
[1644610980335,12.15,97.22,97.133,1.44175786]
[1644610980632,2.38366791,97.219,97.131,5.144]
[1644610980837,25.05367204,97.219,97.13,30.07]
[1644610981133,25.63145877,97.219,97.13,30.07]
[1644610981333,151.9,97.24,97.13,30.07]
[1644610981537,12.15,97.23,97.131,2.38366791]
[1644610981937,5.144,97.229,97.13,30.07]
[1644610982332,15.4513,97.22,97.131,1.44175786]
[1644610982532,12.15,97.21,97.132,44.7591986]
[1644610982734,5.144,97.209,97.132,44.7591986]
[1644610982933,2.38366791,97.209,97.13,30.07]
[1644610983134,0.48,97.204,97.13,30.07]
[1644610983337,12.15,97.2,97.13,30.07]
[1644610983535,151.9,97.19,97.13,30.07]
[1644610983735,12.15,97.18,97.13,30.07]
[1644610984036,15.4615,97.17,97.13,30.07]
[1644610984235,12.15,97.16,97.13,30.07]
[1644610985335,55.0,97.159,97.077,1.44175786]
[1644610985536,4.648,97.158,97.064,40.5054657]
[1644610985735,4.648,97.158,97.036,5.148]
[1644610985936,4.648,97.158,97.041,5.148]
[1644610986138,2.38366791,97.157,97.041,5.148]
[1644610986334,5.148,97.156,97.023,1.44175786]
[1644610986541,5.148,97.156,97.018,1.44175786]
[1644610986737,2.38366791,97.155,97.019,1.44175786]
[1644610987136,2.38366791,97.155,97.015,1.44175786]
[1644610987341,5.148,97.154,97.015,1.44175786]
[1644610987536,5.148,97.154,97.012,5.148]
[1644610987739,12.15,97.14,97.012,5.148]
[1644610987938,5.149,97.139,97.012,5.148]
[1644610988137,12.15,97.14,97.012,5.148]
[1644610988138,12.15,97.14,97.061,10.0356]
[1644610988337,12.15,97.14,97.062,5.149]
[1644610988539,12.15,97.16,97.062,5.149]
[1644610988740,12.15,97.16,97.063,41.36615397]
[1644610988939,12.15,97.16,97.006,15.6537]
[1644610989141,12.15,97.16,97.007,5.149]
[1644610989338,0.48,97.124,97.007,1.282427]
[1644610989543,164.05,97.11,96.941,5.15]
[1644610989748,0.48,97.094,96.938,5.151]
[1644610989938,164.05,97.08,96.966,37.90885313]
[1644610990137,151.9,97.07,96.899,130.5744]
[1644610990341,105.5005,97.07,96.9,28.4893]
[1644610990538,2.38366791,97.079,96.938,5.152]
[1644610990740,5.152,97.092,96.938,4.97232496]
[1644610990939,12.15,97.07,96.939,4.0366]
[1644610991142,12.15,97.07,96.941,35.06674971]
[1644610991349,12.15,97.07,96.942,5.154]
[1644610991544,12.15,97.1,96.971,34.66843686]
[1644610991844,12.15,97.1,96.972,5.152]
[1644610992047,12.15,97.1,96.972,21.6295019]
[1644610992242,12.15,97.15,96.973,145.59855075]
[1644610992444,12.15,97.15,96.974,6.57420315]
[1644610992743,12.15,97.23,96.992,1.42320315]
[1644610992942,5.33237231,97.223,97.006,1.42320315]
[1644610993142,4.0101,97.222,97.02,12.15]
[1644610993341,5.148,97.221,97.022,41.97442698]
[1644610993541,5.32978325,97.24,97.06,15.4492]
[1644610993743,5.32978325,97.24,97.023,119.7106]
[1644610993744,5.32978325,97.24,97.071,38.3194573]
[1644610993941,5.147,97.239,97.08,12.15]
[1644610994142,5.144,97.269,97.081,5.144]
[1644610994345,5.144,97.269,97.081,2.38366791]
[1644610994544,5.144,97.269,97.082,24.44016426]
[1644610994741,16.92067891,97.299,97.082,24.44016426]
[1644610994742,5.144,97.286,97.11,15.4435]
[1644610994941,4.0101,97.285,97.121,43.58264505]
[1644610995141,12.15,97.27,97.122,5.143]
[1644610995343,5.144,97.269,97.121,43.58264505]
[1644610995543,5.144,97.269,97.122,5.144]
[1644610996348,2.38366791,97.268,97.122,5.144]
[1644610996546,5.144,97.267,97.123,2.38366791]
[1644610996747,12.15,97.29,97.123,2.38366791]
[1644610996949,5.143,97.289,97.124,16.91249635]
[1644610997146,5.33094526,97.336,97.124,37.34804183]
[1644610997348,5.142,97.335,97.125,35.47719032]
[1644610997648,5.33094526,97.336,97.125,35.47719032]
[1644610997649,12.15,97.37,97.13,167.3407]
[1644610997849,5.32863413,97.356,97.16,151.9]
[1644610998047,5.32863413,97.356,97.201,47.33608088]
[1644610998248,5.139,97.355,97.201,47.33608088]
[1644610998447,5.138,97.394,97.21,12.15]
[1644610998651,5.138,97.394,97.25,15.4216]
[1644610998847,5.138,97.394,97.252,37.35854434]
[1644610999048,16.90950613,97.393,97.253,5.136]
[1644610999247,16.90950613,97.393,97.252,37.35854434]
[1644610999449,5.136,97.392,97.253,5.136]
[1644611000048,12.15,97.39,97.253,5.136]
[1644611000247,5.136,97.389,97.252,37.35854434]
[1644611000447,5.35505125,97.389,97.252,37.35854434]
[1644611000647,5.57073465,97.389,97.252,37.35854434]
[1644611000849,16.69382273,97.388,97.252,37.35854434]
[1644611001049,5.136,97.387,97.252,37.35854434]
[1644611001248,5.136,97.387,97.253,5.136]
[1644611001760,5.136,97.389,97.253,5.136]
[1644611001949,5.136,97.407,97.254,2.38366791]
[1644611002153,5.136,97.407,97.26,12.15]
[1644611002350,5.136,97.409,97.26,12.15]
[1644611002748,5.136,97.425,97.26,12.15]
[1644611002949,5.136,97.425,97.261,62.36366791]
[1644611003148,16.69045488,97.447,97.27,51.3757]
[1644611003351,5.135,97.446,97.253,5.136]
[1644611003549,2.38366791,97.424,97.253,5.136]
[1644611003751,12.15,97.41,97.231,28.2826]
[1644611003950,12.15,97.41,97.186,1.42320315]
[1644611003951,0.48,97.365,97.213,23.2723]
[1644611004155,12.15,97.35,97.213,23.2723]
[1644611004354,12.15,97.34,97.213,23.2723]
[1644611004556,12.15,97.33,97.213,23.2723]
[1644611004758,0.48,97.344,97.213,23.2723]
[1644611004759,12.15,97.32,97.213,23.2723]
[1644611005158,15.4403,97.31,97.134,5.14]
[1644611005358,12.15,97.3,97.134,5.14]
[1644611005558,5.142,97.299,97.134,5.14]
[1644611005759,5.142,97.318,97.152,5.142]
[1644611005959,12.15,97.32,97.152,5.142]
[1644611005960,5.142,97.319,97.152,5.142]
[1644611006260,5.142,97.319,97.16,12.15]
[1644611006459,2.38366791,97.318,97.161,5.141]
[1644611006658,5.141,97.317,97.154,5.142]
[1644611007062,3.64271917,97.316,97.154,5.142]
[1644611007260,18.94650737,97.316,97.153,45.38479505]
[1644611007458,15.4392,97.31,97.153,45.38479505]
[1644611007659,12.15,97.3,97.154,5.142]
[1644611007859,5.142,97.299,97.154,4.62700606]
[1644611008060,5.142,97.299,97.155,59.98]
[1644611008277,12.15,97.32,97.157,59.98]
[1644611008478,5.141,97.319,97.16,15.4352]
[1644611008876,2.38366791,97.318,97.161,5.141]
[1644611009077,5.141,97.317,97.153,45.38479505]
[1644611009278,4.641,97.317,97.153,45.38479505]
[1644611009577,2.38366791,97.316,97.153,45.38479505]
[1644611009778,5.142,97.315,97.154,5.142]
[1644611009976,12.15,97.3,97.154,5.142]
[1644611010180,5.142,97.299,97.154,5.142]
[1644611010583,0.48,97.294,97.154,5.142]
[1644611010781,12.15,97.28,97.154,5.142]
[1644611010980,5.143,97.279,97.088,1.42320315]
[1644611011181,0.48,97.274,97.089,5.143]
[1644611011384,0.48,97.244,97.081,23.0865]
[1644611011581,12.15,97.23,97.082,42.07435402]
[1644611011780,12.15,97.22,97.082,42.07435402]
[1644611012183,15.4561,97.2,97.082,42.07435402]
[1644611012384,12.15,97.19,97.082,42.07435402]
[1644611012580,5.147,97.189,97.082,42.07435402]
[1644611012980,12.15,97.19,97.082,42.07435402]
[1644611013181,5.147,97.218,97.082,42.07435402]
[1644611013380,12.15,97.22,97.082,42.07435402]
[1644611013581,5.146,97.219,97.082,42.07435402]
[1644611013780,5.146,97.219,97.083,2.38366791]
[1644611013983,5.146,97.219,97.084,5.146]
[1644611014781,12.15,97.24,97.09,15.4468]
[1644611014984,5.144,97.269,97.1,12.15]
[1644611015181,12.15,97.3,97.101,122.06398395]
[1644611015382,5.144,97.299,97.102,129.6346]
[1644611015582,0.48,97.284,97.102,69.6546]
[1644611015792,12.15,97.27,97.102,69.6546]
[1644611016086,15.4475,97.26,97.103,5.144]
[1644611016288,12.15,97.25,97.103,5.144]
[1644611016486,5.144,97.249,97.103,5.144]
[1644611016687,0.48,97.244,97.102,23.6551]
[1644611016888,12.15,97.23,97.102,23.6551]
[1644611017089,15.4529,97.22,97.102,23.6551]
[1644611017288,5.144,97.229,97.101,39.48818395]
[1644611017289,12.15,97.21,97.101,39.48818395]
[1644611017492,12.15,97.2,97.101,39.48818395]
[1644611017788,12.15,97.19,97.101,39.48818395]
[1644611017987,12.15,97.18,97.101,39.48818395]
[1644611018187,15.4553,97.21,97.101,39.48818395]